[Event "ChessKid Cup Div-II 2023"]
[Site "Online"]
[Date "2023.05.24"]
[Round "3.4"]
[White "Oparin, Grigoriy"]
[Black "Nguyen, Ngoc Truong Son"]
[Result "1/2-1/2"]
[ECO "E16"]
[WhiteElo "2667"]
[BlackElo "2645"]
[Annotator "TA"]
[PlyCount "170"]
[EventDate "2023.05.21"]
[EventType "k.o."]
[EventCountry "NET"]
[SourceTitle "playchess.com"]
[Source "ChessBase"]
[SourceQuality "1"]
[TimeControl "900+3"]

{[%evp 42,170,34,38,37,-51,-62,-56,-35,-33,-25,-29,-28,-28,-16,-25,-23,-16,0,0,-6,-8,-7,-21,-10,-29,-29,-26,0,0,0,0,0,0,0,-2,0,0,0,0,0,0,0,0,0,0,0,0,0,0,0,0,0,0,26,0,0,0,0,0,0,0,0,0,0,0,0,0,137,137,137,0,0,0,1,0,0,0,0,0,1,1,1,0,1,8,212,212,212,1,1,1,1,8,8,8,8,0,0,0,0,0,0,0,0,0,8,0,8,8,8,8,8,8,8,8,8,8,8,8,8,8,8,8,8,0,8,0,8,0,8]} 1. d4 {[%emt 0:00:03]} Nf6 {[%emt 0:00:12]} 2. c4 {[%emt 0:00:01]} e6 {[%emt 0:00:02]} 3. Nf3 {[%emt 0:00:01]} d5 {[%emt 0:00:06]} 4. g3 {[%emt 0:00:03]} Bb4+ {[%emt 0:00:32]} 5. Nbd2 {[%emt 0:00:01]} O-O {[%emt 0:00:14]} 6. Bg2 {[%emt 0:00:01]} b6 {[%emt 0:00:07]} 7. O-O {[%emt 0:00:02]} Bb7 {[%emt 0:00:04]} 8. Ne5 {[%emt 0:00:01]} Bd6 {[%emt 0:00:14]} 9. cxd5 {[%emt 0:00:07]} Bxe5 {[%emt 0:00:03]} 10. dxe5 {[%emt 0:00:14]} Nxd5 {[%emt 0:00:02]} 11. Qa4 {[%emt 0:00:24]} Nd7 {[%emt 0:03:32]} 12. Nf3 {[%emt 0:00:04]} Nc5 {[%emt 0:01:09]} 13. Qg4 {[%emt 0:00:05]} f5 {[%emt 0:00:41]} 14. exf6 {[%emt 0:00:02]} Qxf6 {[%emt 0:00:30]} 15. Rb1 {[%emt 0:01:03]} Qf5 {[%emt 0:00:25]} 16. Qxf5 {[%emt 0:00:09]} exf5 {[%emt 0:00:00]} 17. Nd4 {[%emt 0:00:14]} a5 {[%emt 0:00:55]} 18. Rd1 {[%emt 0:00:15]} Rad8 {[%emt 0:00:42]} 19. Bg5 {[%emt 0:00:33]} Rd7 {[%emt 0:00:21]} 20. Rbc1 {[%emt 0:00:08]} h6 {[%emt 0:01:26]} 21. Bd2 {[%emt 0:00:01]} Ne7 {[%emt 0:01:02]} 22. Bxb7 {[%emt 0:01:56]} Rxd4 {[%emt 0:00:12]} 23. Bf3 {[%emt 0:00:43]} (23. e3 $1 $14 Rd7 24. Bf3) 23... Rfd8 $15 {[%emt 0:00:09]} 24. Rc2 {[%emt 0:00:01]} Ne4 {[%emt 0:00:54]} 25. Bxe4 {[%emt 0:00:01]} fxe4 {[%emt 0:00:00]} 26. Kf1 {[%emt 0:00:03]} (26. Rxc7 Nf5 27. g4 Rxd2 $17) 26... c5 {[%emt 0:00:52]} 27. Ke1 {[%emt 0:00:06]} Nc6 {[%emt 0:00:07]} 28. Rdc1 {[%emt 0:00:13]} Kf7 {[%emt 0:00:33]} 29. a3 {[%emt 0:00:09]} h5 {[%emt 0:00:18]} 30. Be3 {[%emt 0:00:07]} R4d5 {[%emt 0:00:07]} 31. Rc4 {[%emt 0:00:02]} Re8 {[%emt 0:00:03]} 32. h3 {[%emt 0:00:07]} Kf6 {[%emt 0:00:07]} 33. Bd2 {[%emt 0:00:09]} Kf5 {[%emt 0:00:10]} 34. b4 {[%emt 0:00:08]} axb4 {[%emt 0:00:05]} (34... Ne5 $5 {[%cal Re5c4]} 35. R4c3 cxb4 36. axb4 a4 $15) 35. axb4 {[%emt 0:00:00]} Ne5 {[%emt 0:00:02]} 36. R4c3 $1 {[%emt 0:00:23]} ({Of course not} 36. g4+ hxg4 37. hxg4+ Nxg4 $17) 36... c4 {[%emt 0:00:07]} 37. b5 {[%emt 0:00:03]} Rxb5 {[%emt 0:00:10]} 38. Bf4 {[%emt 0:00:00]} Rc8 {[%emt 0:00:17]} 39. Bxe5 {[%emt 0:00:05]} Kxe5 {[%emt 0:00:00]} 40. Rxc4 {[%emt 0:00:00]} Rbc5 {[%emt 0:00:15]} 41. Rxc5+ {[%emt 0:00:02]} bxc5 {[%emt 0:00:00]} 42. Kd2 {[%emt 0:00:05]} Kd4 {[%emt 0:00:01]} 43. Ra1 {[%emt 0:00:09]} Rf8 {[%emt 0:00:04]} 44. Ra4+ {[%emt 0:00:04]} c4 {[%emt 0:00:02]} 45. e3+ {[%emt 0:00:02]} Kc5 {[%emt 0:00:04]} 46. Kc3 {[%emt 0:00:11]} Rxf2 {[%emt 0:00:02]} 47. Ra5+ {[%emt 0:00:00]} Kd6 {[%emt 0:00:01]} (47... Kb6 $5 {[%cal Rb6a5]} 48. Rxh5 Rf3 $14) 48. Rxh5 {[%emt 0:00:01]} Rf3 {[%emt 0:00:06]} 49. Rg5 {[%emt 0:00:00]} Rxe3+ {[%emt 0:00:06]} 50. Kxc4 {[%emt 0:00:04]} Rd3 {[%emt 0:00:08]} 51. Rxg7 {[%emt 0:00:03]} Ke5 {[%emt 0:00:03]} 52. Rg5+ {[%emt 0:00:09]} Kf6 {[%emt 0:00:02]} 53. h4 {[%emt 0:00:05]} Rd1 {[%emt 0:00:03]} 54. Rg8 {[%emt 0:00:08]} Kf7 {[%emt 0:00:04] [#]} (54... Kf5 $11) 55. Rg4 $1 $16 {[%emt 0:00:01]} Rd3 {[%emt 0:00:07] [#]} 56. h5 {[%emt 0:00:32]} ({Much worse is} 56. Rxe4 $6 Rxg3 57. h5 Rh3 $11) (56. Rf4+ $1 $16 Kg6 57. g4 (57. Rxe4 Rxg3 58. Re8 Rg4+ 59. Kd5 Rxh4 $11)) 56... Kf6 $11 {[%emt 0:00:05]} 57. h6 {[%emt 0:00:08]} Rd1 {[%emt 0:00:02]} 58. Rh4 {[%emt 0:00:24]} Rd8 {[%emt 0:00:02]} 59. Rxe4 {[%emt 0:00:11]} Kg6 {[%emt 0:00:02]} 60. Re6+ {[%emt 0:00:10]} Kg5 {[%emt 0:00:03]} (60... Kf5 $5 {[%cal Rf5e6]} 61. Re7 Kf6 $11) 61. h7 {[%emt 0:00:07]} Rh8 {[%emt 0:00:03]} 62. Re7 {[%emt 0:00:00]} Kg6 {[%emt 0:00:04]} 63. Kd4 {[%emt 0:00:06]} Kf6 $2 {[%emt 0:00:01]} (63... Rxh7 $11 64. Re8 Rg7) 64. Ra7 $18 {[%emt 0:00:02]} Re8 {[%emt 0:00:04]} 65. Ra1 $2 {[%emt 0:00:52]} ({White should try} 65. Rb7 $18) 65... Kg7 $11 {[%emt 0:00:02]} 66. Rh1 {[%emt 0:00:02]} Kh8 {[%emt 0:00:00]} 67. g4 {[%emt 0:00:04]} Re7 {[%emt 0:00:04]} 68. Kd5 {[%emt 0:00:12]} Rg7 {[%emt 0:00:05]} (68... Rxh7 {simplifies} 69. Rxh7+ Kxh7 70. Ke5 Kg6) 69. Rg1 {[%emt 0:00:09]} Kxh7 {[%emt 0:00:02]} 70. Ke5 {[%emt 0:00:01]} Kg6 {[%emt 0:00:01]} 71. Kf4 {[%emt 0:00:01]} Rf7+ {[%emt 0:00:01]} 72. Kg3 {[%emt 0:00:01]} Rb7 {[%emt 0:00:04]} 73. Ra1 {[%emt 0:00:01]} Rb6 {[%emt 0:00:03]} 74. Ra8 {[%emt 0:00:01]} Rc6 {[%emt 0:00:02]} 75. Kh4 {[%emt 0:00:00]} Kg7 {[%emt 0:00:03]} 76. Ra5 {[%emt 0:00:05]} Kg6 {[%emt 0:00:03]} 77. Rg5+ {[%emt 0:00:02]} Kh6 {[%emt 0:00:01]} 78. Rd5 {[%emt 0:00:00]} Kg6 {[%emt 0:00:02]} 79. Rd8 {[%emt 0:00:00]} Rb6 {[%emt 0:00:02]} 80. Rg8+ {[%emt 0:00:03]} Kh7 {[%emt 0:00:01]} 81. Rg5 {[%emt 0:00:01]} Kh6 {[%emt 0:00:02]} 82. Rh5+ {[%emt 0:00:00]} Kg6 {[%emt 0:00:01]} 83. Rg5+ {[%emt 0:00:00]} Kh6 {[%emt 0:00:01]} 84. Rh5+ {[%emt 0:00:00]} Kg6 {[%emt 0:00:00]} 85. Rg5+ {[%emt 0:00:00]} Kh6 {[%emt 0:00:01]} 1/2-1/2

[Event "ChessKid Cup Div-II 2023"]
[Site "Online"]
[Date "2023.05.25"]
[Round "4.1"]
[White "Nguyen, Ngoc Truong Son"]
[Black "Fedoseev, Vladimir"]
[Result "0-1"]
[ECO "D11"]
[WhiteElo "2645"]
[BlackElo "2680"]
[Annotator "TA"]
[PlyCount "76"]
[EventDate "2023.05.21"]
[EventType "k.o."]
[EventCountry "NET"]
[SourceTitle "playchess.com"]
[Source "ChessBase"]
[SourceQuality "1"]
[TimeControl "900+3"]

{[%evp 13,76,0,0,0,0,-12,-18,-15,-12,-54,-53,-113,-123,-125,-122,-149,-125,-130,-103,-100,-104,-121,-136,-154,-158,-162,-132,-171,-160,-164,-135,-145,-135,-137,-138,-152,-158,-196,-183,-239,-239,-245,-228,-237,-244,-215,-220,-304,-322,-460,-453,-450,-438,-495,-479,-472,-449,-558,-551,-966,-958,-923,-914,-29985,-29985]} 1. d4 {[%emt 0:00:11]} d5 {[%emt 0:00:05]} 2. Nf3 {[%emt 0:00:02]} Nf6 {[%emt 0:00:03]} 3. g3 {[%emt 0:00:02]} c6 {[%emt 0:00:25]} 4. Bg2 {[%emt 0:00:04]} Bf5 {[%emt 0:00:03]} 5. O-O {[%emt 0:00:44]} e6 {[%emt 0:00:04]} 6. c4 {[%emt 0:00:23]} Be7 {[%emt 0:00:15]} 7. Qb3 {[%emt 0:00:34]} Qb6 {[%emt 0:00:03]} 8. Nc3 {[%emt 0:01:06] D11: Slav Defence: 3 Nf3 sidelines and 3...Nf6 4 e3 Bg4.} O-O {[%emt 0:00:20]} 9. Re1 {[%emt 0:03:00] [#]} Qxb3 $146 {[%emt 0:00:57]} ({Predecessor:} 9... Nbd7 10. Bf4 h6 11. h4 Rfe8 12. Rac1 Bh7 13. Na4 Qxb3 14. axb3 Ne4 15. Red1 g5 16. hxg5 hxg5 {0-1 Turan,A (2024)-Nesterov,A (2388) EU-ch 19th Batumi 2018 (5)}) 10. axb3 {[%emt 0:00:03] The position is equal.} Bc2 {[%emt 0:00:27]} 11. Nd2 {[%emt 0:00:15]} Na6 {[%emt 0:00:12]} 12. Ncb1 {[%emt 0:04:02]} (12. cxd5 $15 Nxd5 13. Nxd5 cxd5 14. e4) 12... Nb4 $17 {[%emt 0:00:17]} 13. Na3 {[%emt 0:00:02]} Rfd8 {[%emt 0:00:06]} 14. e3 {[%emt 0:00:28]} h6 {[%emt 0:00:55]} 15. Bf1 {[%emt 0:00:32]} c5 {[%emt 0:00:21]} 16. cxd5 {[%emt 0:01:18]} Nfxd5 {[%emt 0:00:21]} 17. dxc5 {[%emt 0:00:39]} Bxc5 {[%emt 0:00:02]} 18. Re2 {[%emt 0:00:54]} Bd3 {[%emt 0:00:46]} 19. Re1 {[%emt 0:00:02]} a6 {[%emt 0:00:22]} 20. Ndc4 {[%emt 0:00:34][%cal Bd2c4,Bc4e5,Be5f3,Bf3d4,Bd4f5][%mdl 32]} b5 {[%emt 0:00:48]} 21. Ne5 {[%emt 0:00:14]} Bxf1 {[%emt 0:00:36]} 22. Kxf1 {[%emt 0:00:04]} Bd6 {[%emt 0:00:08]} 23. Nf3 {[%emt 0:00:03]} Nd3 $36 {[%emt 0:00:03][%mdl 2048] Black is on the roll.} 24. Rd1 {[%emt 0:00:05]} Nc5 {[%emt 0:00:17] Black is much more active. The white rooks are badly placed.} 25. Nd4 {[%emt 0:00:13]} Rac8 {[%emt 0:00:06]} 26. Bd2 {[%emt 0:00:13]} (26. Rb1 $142) 26... e5 $19 {[%emt 0:00:14]} 27. b4 {[%emt 0:00:28]} Nd3 {[%emt 0:00:27]} 28. Nf5 {[%emt 0:00:02]} Bf8 {[%emt 0:00:14]} ({Weaker is} 28... Bxb4 29. Bxb4 N3xb4 30. e4 $15) (28... Nxb2 $2 {too greedy.} 29. Nxd6 Rxd6 30. Rdc1) 29. e4 {[%emt 0:00:02] [#]} Nf6 {[%emt 0:00:18]} ({Worse is} 29... N5xb4 30. Rab1 $17) 30. Bc3 {[%emt 0:00:03]} Nxe4 {[%emt 0:00:04]} 31. f3 {[%emt 0:00:05]} (31. Be1 {was worth a try.}) 31... Nxc3 {[%emt 0:00:04]} 32. bxc3 {[%emt 0:00:00]} Rxc3 {[%emt 0:00:06]} 33. Ne3 {[%emt 0:00:05]} Bxb4 {[%emt 0:00:22]} 34. Nac2 {[%emt 0:00:01]} Bc5 {[%emt 0:00:03] ...b4 is the strong threat.} 35. Rxa6 {[%emt 0:00:03]} b4 {[%emt 0:00:03][%cal Bb5b4,Bb4b3,Bb3b2][%mdl 32]} 36. Rc6 {[%emt 0:00:05]} b3 {[%emt 0:00:23]} 37. Ne1 {[%emt 0:00:01]} b2 {[%emt 0:00:05] [#] Threatens to win with ...Rc1.} 38. Nf5 {[%emt 0:00:05]} Rc1 {[%emt 0:00:06] White did not feel at home in the position after the opening.   Weighted Error Value: White=0.63/Black=0.05 (flawless)} 0-1

[Event "ChessKid Cup Div-II 2023"]
[Site "Online"]
[Date "2023.05.25"]
[Round "4.2"]
[White "Fedoseev, Vladimir"]
[Black "Nguyen, Ngoc Truong Son"]
[Result "1-0"]
[ECO "D35"]
[WhiteElo "2680"]
[BlackElo "2645"]
[Annotator "TA"]
[PlyCount "145"]
[EventDate "2023.05.21"]
[EventType "k.o."]
[EventCountry "NET"]
[SourceTitle "playchess.com"]
[Source "ChessBase"]
[SourceQuality "1"]
[TimeControl "900+3"]

{[%evp 15,145,13,17,14,24,0,0,0,0,0,5,8,63,64,76,31,32,29,55,21,33,0,0,0,0,0,0,0,0,0,3,8,10,0,0,0,0,0,17,0,0,0,0,0,0,0,27,0,0,0,0,0,8,0,8,8,8,8,8,8,8,8,8,8,8,8,8,8,47,8,62,8,8,8,8,0,8,0,107,107,107,107,1531,984,1356,1324,861,736,1486,1433,1122,789,2027,1463,29962,29963,29963,29964,29964,29965,29970,29967,29966,29967,29971,29972,29971,29973,29973,29974,29974,29970,29970,29969,29969,29968,29968,29967,29974,29975,29975,29976,29976,29977,29977,29978,29978,29978,29978,29979,29979,29980]} 1. d4 {[%emt 0:00:03]} Nf6 {[%emt 0:00:07]} 2. c4 {[%emt 0:00:03]} e6 {[%emt 0:00:01]} 3. Nf3 {[%emt 0:00:32]} d5 {[%emt 0:00:04]} 4. cxd5 {[%emt 0:00:23]} exd5 {[%emt 0:00:03]} 5. Nc3 {[%emt 0:00:01]} c6 {[%emt 0:00:06]} 6. Bf4 {[%emt 0:00:04]} Bd6 {[%emt 0:00:05]} 7. Bxd6 {[%emt 0:00:03]} Qxd6 {[%emt 0:00:01]} 8. e3 {[%emt 0:00:01]} Bf5 {[%emt 0:00:15] The main line 8...Bf5 scores better than 8...0-0.} 9. Qb3 {[%emt 0:00:03] D35: Queen's Gambit Declined: Exchange Variation.} Nbd7 {[%emt 0:00:51]} 10. Be2 {[%emt 0:02:44]} (10. Nh4 $5 {[%cal Rh4f5]} Bg6 11. Qxb7 $14 (11. Nxg6 hxg6 12. Qxb7 Rb8 $14)) 10... O-O {[%emt 0:00:05] [#]} 11. Qxb7 $146 {[%emt 0:00:42] The position is equal.} ({Predecessor:} 11. O-O Rab8 12. a4 Ne4 13. Nxe4 Bxe4 14. Nd2 Nf6 15. Rfc1 Rfe8 16. Qa3 Qxa3 17. Rxa3 {1-0 Acosta,P (2448)-Vazquez,F (2357) Buenos Aires IM 05 2022 (1)}) 11... a5 {[%emt 0:01:50] White must now prevent ...Rfb8.} 12. Qb3 {[%emt 0:00:08]} Rfb8 {[%emt 0:03:20]} 13. Qa3 {[%emt 0:00:03]} Qxa3 {[%emt 0:01:23]} ({Black should try} 13... Qb4 $11) 14. bxa3 $14 {[%emt 0:00:03]} Ne4 {[%emt 0:00:05]} 15. Nd1 {[%emt 0:01:26]} Rb6 {[%emt 0:01:55]} 16. O-O {[%emt 0:00:05]} Rc8 {[%emt 0:01:43]} 17. Rc1 {[%emt 0:01:53]} (17. Bd3 $5 {[%cal Rd1c3]}) 17... c5 {[%emt 0:00:02]} 18. dxc5 {[%emt 0:01:01]} Rxc5 {[%emt 0:00:00]} 19. Rxc5 {[%emt 0:00:03]} Ndxc5 {[%emt 0:00:01]} 20. Nd4 {[%emt 0:00:02]} Bd7 {[%emt 0:00:01]} 21. f3 {[%emt 0:00:47]} Nd2 {[%emt 0:00:03]} 22. Re1 {[%emt 0:00:04]} Nb1 {[%emt 0:00:05] Prevents Nc3} 23. Nf2 {[%emt 0:00:34]} Nxa3 {[%emt 0:00:08]} 24. Nd3 {[%emt 0:00:26]} Ne6 {[%emt 0:00:20]} 25. Nxe6 {[%emt 0:00:44]} fxe6 {[%emt 0:00:39]} 26. Rc1 {[%emt 0:00:13] Dodges Nc2} Rc6 {[%emt 0:00:42]} 27. Nc5 {[%emt 0:00:56]} Be8 {[%emt 0:00:35]} 28. Kf2 {[%emt 0:00:20]} Kf7 {[%emt 0:00:15]} 29. Bd3 {[%emt 0:00:24]} h6 {[%emt 0:00:19]} 30. e4 {[%emt 0:00:23]} Nc4 {[%emt 0:01:08]} 31. Nb7 {[%emt 0:01:00] Hoping for Nd8+.} Ne5 {[%emt 0:00:06][%csl LRc1,LRd3]} 32. Nd8+ {[%emt 0:00:55]} Kf6 {[%emt 0:00:02]} 33. Rxc6 {[%emt 0:00:02]} Nxc6 $11 {[%emt 0:00:02][%mdl 4096] Endgame KBN-KBN} 34. Nb7 {[%emt 0:00:05]} Nb4 {[%emt 0:00:09]} 35. Bb1 {[%emt 0:00:05]} dxe4 {[%emt 0:00:03]} 36. a3 {[%emt 0:00:10]} Nd5 {[%emt 0:00:06] ...e3+ would be deadly.} ({Don't take} 36... Nd3+ 37. Bxd3 exd3 38. Nxa5 $16 (38. Ke3 a4 $11)) 37. Bxe4 {[%emt 0:00:02]} a4 $1 {[%emt 0:00:02]} 38. Bxd5 {[%emt 0:00:01]} exd5 {[%emt 0:00:01] KB-KN} 39. Ke3 {[%emt 0:00:01]} g5 {[%emt 0:00:08]} 40. Kd4 {[%emt 0:00:01]} Bc6 {[%emt 0:00:01]} 41. Nc5 {[%emt 0:00:02]} h5 {[%emt 0:00:03]} 42. g3 {[%emt 0:00:05]} h4 {[%emt 0:00:02]} ({Better is} 42... Kf5 $11) 43. Nd3 {[%emt 0:00:01] White is more active.} (43. g4 $1 $14) 43... Ke6 {[%emt 0:00:05]} 44. Kc5 {[%emt 0:00:10]} Bb7 {[%emt 0:00:03]} 45. Kd4 {[%emt 0:00:05] Nc5+ would kill now.} Bc6 {[%emt 0:00:03]} 46. Ne5 {[%emt 0:00:03]} Bb5 {[%emt 0:00:02]} (46... Be8 $11) 47. gxh4 $16 {[%emt 0:00:02]} gxh4 {[%emt 0:00:00]} 48. Ng6 {[%emt 0:00:00]} h3 {[%emt 0:00:05][%mdl 8192] Loses the game.} (48... Kf5 $16 49. Nxh4+ Kf4) 49. Nf4+ $18 {[%emt 0:00:01]} Kf5 {[%emt 0:00:00]} 50. Nxh3 {[%emt 0:00:01]} (50. Nxd5 Be8 $16) 50... Bc4 {[%emt 0:00:04]} 51. Ke3 {[%emt 0:00:04] Nf4 is the strong threat.} Ke5 {[%emt 0:00:02]} 52. f4+ {[%emt 0:00:02][%cal Bf3f4,Bf4f5][%mdl 32]} Kf5 {[%emt 0:00:01]} 53. Ng1 {[%emt 0:00:02]} Kg4 {[%emt 0:00:01]} 54. Nf3 {[%emt 0:00:02] Threatening mate with Ne5+.} Ba2 {[%emt 0:00:08]} 55. Nd4 {[%emt 0:00:03] White mates.} Bb1 {[%emt 0:00:01] [#]} 56. f5 $1 {[%emt 0:00:08][%mdl 512]} Kg5 {[%emt 0:00:02] [#]} (56... Be4 57. f6) 57. h4+ $1 {[%emt 0:00:06][%mdl 576] Deflection} Kxh4 {[%emt 0:00:03]} (57... Kf6 58. Kf4) 58. Kf4 {[%emt 0:00:01]} Kh5 {[%emt 0:00:01]} 59. Ke5 {[%emt 0:00:03]} Kh6 {[%emt 0:00:01]} 60. Ke6 {[%emt 0:00:02]} ({Less strong is} 60. Kxd5 Kg7 $16) 60... Kg7 {[%emt 0:00:03] [#]} 61. Ke7 $1 {[%emt 0:00:02]} ({Stronger than} 61. Kxd5 Kf6 $11) 61... Kg8 {[%emt 0:00:02] [#]} 62. f6 $1 {[%emt 0:00:04]} Bg6 {[%emt 0:00:01]} 63. Ne6 {[%emt 0:00:03]} Bh5 {[%emt 0:00:06]} 64. Nf4 {[%emt 0:00:12]} Bf7 {[%emt 0:00:01]} 65. Ne2 {[%emt 0:00:00]} Bh5 {[%emt 0:00:04]} 66. Ng3 {[%emt 0:00:02]} Bg6 {[%emt 0:00:02] [#]} 67. Nf5 $1 {[%emt 0:00:01][%mdl 576] Deflection, Promotion} Bh5 {[%emt 0:00:07] [#]} 68. f7+ $1 {[%emt 0:00:01][%mdl 576] Decoy} Bxf7 {[%emt 0:00:01]} 69. Nh6+ {[%emt 0:00:00]} Kg7 {[%emt 0:00:00]} 70. Nxf7 {[%emt 0:00:01]} Kg6 {[%emt 0:00:01]} 71. Ke6 {[%emt 0:00:02]} d4 {[%emt 0:00:01]} 72. Ne5+ {[%emt 0:00:00]} Kg5 {[%emt 0:00:01]} 73. Kd5 {[%emt 0:00:01] Weighted Error Value: White=0.08 (flawless) /Black=0.27 (precise)} 1-0

[Event "ChessKid Cup Div-II 2023"]
[Site "Online"]
[Date "2023.05.25"]
[Round "4.3"]
[White "Nguyen, Ngoc Truong Son"]
[Black "Fedoseev, Vladimir"]
[Result "1-0"]
[ECO "D17"]
[WhiteElo "2645"]
[BlackElo "2680"]
[Annotator "TA"]
[PlyCount "51"]
[EventDate "2023.05.21"]
[EventType "k.o."]
[EventCountry "NET"]
[SourceTitle "playchess.com"]
[Source "ChessBase"]
[SourceQuality "1"]
[TimeControl "900+3"]

{[%evp 15,51,22,18,14,20,0,29,12,10,10,14,-12,-2,-17,0,-51,-28,-27,-31,-60,0,0,0,0,0,0,16,0,0,0,0,-33,-37,-45,132,122,406,408]} 1. d4 {[%emt 0:00:04]} d5 {[%emt 0:00:07]} 2. Nf3 {[%emt 0:00:02]} Nf6 {[%emt 0:00:01]} 3. c4 {[%emt 0:00:01]} c6 {[%emt 0:00:06]} 4. Nc3 {[%emt 0:00:02]} dxc4 {[%emt 0:00:10]} 5. a4 {[%emt 0:00:06]} Bf5 {[%emt 0:00:01]} 6. Ne5 {[%emt 0:00:06]} Nbd7 {[%emt 0:00:02]} 7. Nxc4 {[%emt 0:00:02]} Nb6 {[%emt 0:00:01]} 8. Ne5 {[%emt 0:00:08]} a5 {[%emt 0:00:02]} 9. e3 {[%emt 0:00:18] D17: Slav Defence: 5 a4 Bf5: Lines with 6 Nh4 and 6 Ne5.} Nfd7 {[%emt 0:00:29]} 10. Bd3 {[%emt 0:00:17]} g6 {[%emt 0:00:13]} (10... e6 $5 {[%cal Rd7e5]}) 11. Bxf5 {[%emt 0:01:01] White has an edge.} gxf5 {[%emt 0:00:04] [#]} 12. Nd3 $146 {[%emt 0:00:01]} ({Predecessor:} 12. Nf3 e6 13. O-O Nf6 14. Qe2 Bb4 15. Bd2 Rg8 16. Ne5 Nbd7 17. Nd3 Bd6 18. f4 {0-1 Ter Sahakyan,S (2605)-Dubov,D (2708) Speed Chess Q1 blitz 2022 (6)}) 12... e6 {[%emt 0:00:12]} 13. g4 {[%emt 0:00:10]} Qg5 {[%emt 0:01:21]} 14. h3 {[%emt 0:00:08]} O-O-O {[%emt 0:00:38]} 15. Bd2 {[%emt 0:00:20]} ({Better is} 15. Qf3 $11) 15... Nc4 {[%emt 0:00:26]} 16. Qe2 {[%emt 0:00:31]} e5 {[%emt 0:00:20]} 17. d5 {[%emt 0:00:17]} e4 {[%emt 0:00:31]} (17... Ndb6 $15) 18. Nf4 $11 {[%emt 0:00:31]} Nde5 {[%emt 0:00:01] Strongly threatening ...Nf3+.} (18... Nxb2 $2 19. dxc6 Nc5 20. Qb5 fxg4 21. Qxb2 $18 (21. cxb7+ Kb8 $16)) 19. O-O-O $1 {[%emt 0:00:01]} Qf6 {[%emt 0:01:14]} (19... fxg4 20. Nxe4 Qf5 21. Ng3 $16) 20. Kb1 {[%emt 0:00:09]} Bh6 {[%emt 0:00:13]} 21. Bc1 {[%emt 0:00:15] Nh5 is the strong threat.} (21. dxc6 {feels hotter.} bxc6 22. Bc1 Bxf4 23. exf4 Nd3 24. gxf5 Qxf5 25. Nxe4 Nxf2 26. Rxd8+ Rxd8 27. Qxc4 Qxe4+ 28. Qxe4 Nxe4 29. Rg1) 21... Bxf4 {[%emt 0:00:16][%mdl 64] [#] Remove Defender} 22. exf4 {[%emt 0:00:04]} Nd3 {[%emt 0:00:01]} 23. Rxd3 {[%emt 0:06:38]} (23. f3 $5 {[%cal Rf3e4]} cxd5 24. Rxd3 exd3 25. Qxd3 $11) 23... exd3 {[%emt 0:00:03]} 24. Qxd3 {[%emt 0:00:00]} cxd5 {[%emt 0:03:44]} (24... Nb6 $15 {stays ahead.} 25. g5 Qe6 26. dxe6 Rxd3) 25. Nxd5 $16 {[%emt 0:00:42]} Qa6 {[%emt 0:00:10][%mdl 8192] [#]} (25... Qc6 $16 {was necessary.} 26. Ne7+ (26. Qxf5+ Kb8 $19) 26... Kc7 27. Qxd8+ (27. Nxc6 Rxd3 28. Kc2 Rd5 $17) 27... Rxd8 28. Nxc6 Kxc6) 26. Qxc4+ $3 {[%emt 0:00:05][%mdl 576] Remove Defender, Decoy. Excellently played by Nguyen!   Weighted Error Value: White=0.15 (very precise) /Black=0.56} 1-0